Cogmind - Beta 16 @@@ ROGUE MODE // 2025.12.30 @ 11:53:24 Player: shockman27 Result: Destroyed by B-75 Beast with Heavy Plasma Cannon Performance ------------- Evolutions (1) 500 Regions Visited (6) 1200 Robots Destroyed (88) 440 Value Destroyed (1808) 1808 Prototype IDs (3) 60 Alien Tech Used (0) 0 Bonus (920) 920 TOTAL SCORE: 4928 Bonus ------- High Alert Combat Kills 13 Follower Combat Kills 332 Met Imprinter 300 Was Imprinted 300 Friendly Fire -25 Cogmind --------- Core Integrity 0/400 Matter 270/300 Energy 69/100 System Corruption 4% Temperature Cool (12) Movement Treading (160) Location -6/Proximity Caves Parts ------- > --- POWER (1) -------- (None) > --- PROPULSION (3) --- Improved Treads Improved Treads Improved Treads > --- UTILITY (2) ------ High-capacity Storage Unit > --- WEAPON (3) ------- CR-A16's Pointy Stick > --- INVENTORY (20) --- Ion Engine Improved Treads Armored Treads Cooling System Seismic Detector Mobile Refinery Mk. CCLXVII Hacking Drone Bay Assault Rifle Improved Assault Rifle Light Cannon Light Cannon Light Cannon Mini Grenade Launcher Mini Grenade Launcher Datajack Makeshift Sword Peak State ------------ > --- POWER ------------ Light Angular Momentum Engine > --- PROPULSION ------- Improved Treads Armored Treads Armored Treads > --- UTILITY ---------- High-capacity Storage Unit Medium Armor Plating > --- WEAPON ----------- Light Cannon Light Cannon CR-A16's Pointy Stick > --- INVENTORY -------- Ion Engine Improved Treads Improved Treads Improved Treads Improved Treads Armored Treads Cooling System Seismic Detector Light Armor Plating Mobile Refinery Mk. CCLXVII Hacking Drone Bay Assault Rifle Improved Assault Rifle Light Cannon Light Cannon Light Cannon Mini Grenade Launcher Mini Grenade Launcher Datajack Makeshift Sword [Rating: 26] Favorites ----------- Power Ion Engine Engine Ion Engine Propulsion Improved Treads Treads Improved Treads Wheel Compact Wheel Hover Unit Combat Airjet Utility High-capacity Storage Unit Device Seismic Detector Storage High-capacity Storage Unit Protection Medium Armor Plating Weapon Light Cannon Energy Cannon Advanced Beam Cannon Ballistic Gun Assault Rifle Ballistic Cannon Light Cannon Launcher Grenade Launcher Piercing Weapon CR-A16's Pointy Stick Build | -11 -10 -10 -9 -9 -7 -6 ------- Run | Yrd Mat Min Mat Min Zio Pro Slots Evolved 2 | . . . 2 . . . Power . | . . . . . . . Propulsion 1 | . . . 1 . . . Utility . | . . . . . . . Weapon 1 | . . . 1 . . . Parts Attached 58 | 8 10 7 23 . 1 9 Power 5 | 1 1 1 1 . . 1 Engine 5 | 1 1 1 1 . . 1 Core . | . . . . . . . Reactor . | . . . . . . . Propulsion 21 | 2 2 1 10 . . 6 Treads 17 | 2 2 . 7 . . 6 Leg . | . . . . . . . Wheel 2 | . . 1 1 . . . Hover 2 | . . . 2 . . . Flight . | . . . . . . . Utility 12 | 2 3 2 3 . 1 1 Device 2 | 1 . . . . 1 . Storage 3 | 1 2 . . . . . Processor . | . . . . . . . Hackware . | . . . . . . . Protection 7 | . 1 2 3 . . 1 Artifact . | . . . . . . . Weapon 20 | 3 4 3 9 . . 1 Energy Gun . | . . . . . . . Energy Cannon 1 | . . . 1 . . . Ballistic Gun 5 | 3 1 . 1 . . . Ballistic Cannon 9 | . 2 2 5 . . . Launcher 4 | . 1 1 2 . . . Special Weapon . | . . . . . . . Impact Weapon . | . . . . . . . Slashing Weapon . | . . . . . . . Piercing Weapon 1 | . . . . . . 1 Special Melee Weapon . | . . . . . . . Unidentified Prototypes 3 | . . . 2 . 1 . Parts Lost 18 | . 1 7 3 . . 7 Power 3 | . . 1 1 . . 1 Propulsion 5 | . . 3 . . . 2 Utility 6 | . 1 2 1 . . 2 Weapon 4 | . . 1 1 . . 2 Highest Loss Streak 7 | . 1 6 1 . . 7 To Critical Strikes . | . . . . . . . Average Backups 16 | 3 12 14 17 20 19 19 Power 1 | . 1 . 1 1 1 1 Propulsion 3 | 1 2 1 4 5 5 4 Utility 4 | . 3 4 4 5 4 4 Weapon 6 | . 5 5 7 8 7 8 Tool/Special . | . . . . . . . Unused Backups 19 | . 6 . 3 . 3 7 Power 1 | . 1 . . . . . Propulsion 6 | . 2 . 2 . . 2 Utility 5 | . . . 1 . 1 3 Weapon 6 | . 3 . . . 2 1 Tool/Special 1 | . . . . . . 1 Average Slot Usage (%) 98 | . 99 96 98 100 100 97 Engine 12 | . 14 14 11 11 11 10 Treads 29 | . 27 24 29 33 33 32 Device 3 | . 13 . . . . . Storage 12 | . 14 14 11 11 11 11 Protection 9 | . . 13 10 11 10 10 Ballistic Gun 3 | . 12 . 1 . . . Ballistic Cannon 26 | . 15 25 29 33 33 30 Peak Build Rating 26 | 7 8 14 22 16 21 26 Average Rating 13 | 5 7 10 15 16 17 19 On Entrance 11 | . 7 8 14 16 16 17 Avg Prop Armor Cover (%) 5 | . . 8 5 . . . Naked Turns . | . . . . . . . Heaviest Build 65 | 12 48 54 61 61 61 65 Greatest Support 69 | 40 40 40 69 69 69 69 Greatest Overweight (x) 5 | . 1 5 5 . . 1 Average Overweight (x) . | . . 1 . . . . Largest Inventory Capacity 20 | 8 20 20 20 20 20 20 Average Capacity 18 | 7 13 19 20 20 20 20 Most Carried 20 | 5 15 16 20 20 20 20 Average Carried 16 | 3 12 15 18 20 19 19 Final Capacity 20 | 8 15 20 20 20 20 20 Final Carried 20 | 5 14 15 20 20 20 16 Class Distribution -------------------- 48% | Mutant 41% | Tank 9% | Scavenger-Tank Dominant Class ---------------- Mutant | -10/Materials Mutant | -10/Mines Tank | -9/Materials Tank | -9/Mines Tank | -7/Zion Tank | -6/Proximity Caves Resources | -11 -10 -10 -9 -9 -7 -6 ----------- Run | Yrd Mat Min Mat Min Zio Pro Matter Collected 2516 | 324 378 418 1262 . 20 114 Remotely . | . . . . . . . Salvage Created 2499 | 179 434 316 1473 . . 97 Parts 155 | 6 28 25 93 . . 3 Haulers Intercepted 5 | . 1 . 4 . . . Recyclers Shooed 3 | . 1 . 2 . . . Parts Field Recycled . | . . . . . . . Retrieved Matter . | . . . . . . . Parts Self-Destructed 8 | . . . . . 4 4 Prevented 9 | . . . . . . 9 Parts Restored . | . . . . . . . Kills | -11 -10 -10 -9 -9 -7 -6 ------- Run | Yrd Mat Min Mat Min Zio Pro Combat Hostiles Destroyed 63 | . 12 20 29 . . 2 Guns 3 | . 3 . . . . . Cannons 39 | . 2 9 26 . . 2 AOE 21 | . 7 11 3 . . . Classes Destroyed 13 | 2 5 2 4 . . . Worker 8 | . 3 2 3 . . . Builder 2 | . . . 2 . . . Tunneler 5 | 4 . 1 . . . . Hauler 5 | . 1 . 4 . . . Recycler 12 | 1 2 1 8 . . . Operator 1 | . . . 1 . . . Watcher 3 | . 1 . 2 . . . Swarmer 20 | . 5 3 12 . . . Grunt 20 | . 7 4 7 . . 2 Duelist 1 | . . . 1 . . . Sentry 9 | . . . 9 . . . Demolisher 2 | . . 2 . . . . Assembled 11 | . . 11 . . . . Best Kill Streak 7 | 4 6 7 5 . . 2 Combat Bots Only 7 | . 5 7 4 . . 2 Max Kills in Single Turn 4 | 1 3 3 4 . . 1 Gunslinging . | . . . . . . . Exploded 3 | . 2 3 3 . . . Melee . | . . . . . . . Uniques/NPCs Destroyed . | . . . . . . . Combat | -11 -10 -10 -9 -9 -7 -6 -------- Run | Yrd Mat Min Mat Min Zio Pro Hostile Shots Fired 332 | . 40 64 114 . . 114 Missed 87 | . 10 19 34 . . 24 Hits 245 | . 30 45 80 . . 90 Melee 18 | . . 9 1 . . 8 Projectile 227 | . 30 36 79 . . 82 AOE 22 | . . 22 . . . . Critical Strikes 5 | . . . 2 . . 3 Damage Taken 4429 | . 308 1274 930 . . 1917 Core 555 | . 52 89 81 . . 333 Absorbed by Shields . | . . . . . . . Regen/Repaired (Parts) 171 | . 171 . . . . . Core Remaining (%) 71 | 100 . 43 . . . . Volleys Fired 172 | 11 33 44 77 . . 7 Largest 3 | 2 2 2 3 . . 3 Hottest 90 | 40 60 60 90 . . 90 Shots Fired 406 | 22 61 88 214 . . 21 Gun 74 | 22 42 . 10 . . . Cannon 310 | . 13 74 202 . . 21 Launcher 22 | . 6 14 2 . . . Special . | . . . . . . . Kinetic 384 | 22 55 74 212 . . 21 Thermal . | . . . . . . . Explosive 22 | . 6 14 2 . . . Electromagnetic . | . . . . . . . Robot Hit Streak 11 | 7 11 6 7 . . 6 Robot Miss Streak 5 | 5 4 4 4 . . 2 Penetration Max . | . . . . . . . Secondary Targets . | . . . . . . . Shots Hit Robots 219 | 11 37 41 110 . . 20 Core Hits 139 | 6 28 39 58 . . 8 Critical Kills . | . . . . . . . Critical Parts Destroyed . | . . . . . . . Critical Strikes 10 | . . 1 8 . . 1 Blast 9 | . . 1 8 . . . Impale 1 | . . . . . . 1 Melee Attacks 6 | . . . . . . 6 Impact . | . . . . . . . Slashing . | . . . . . . . Piercing 6 | . . . . . . 6 Sneak Attacks . | . . . . . . . Combat Hostiles . | . . . . . . . Follow-up Attacks . | . . . . . . . Damage Inflicted 5487 | 132 1202 1454 2247 . . 452 Guns 468 | 132 276 . 60 . . . Cannons 3143 | . 138 728 1955 . . 322 Explosions 1724 | . 788 712 224 . . . Melee 130 | . . . . . . 130 Ramming 22 | . . 14 8 . . . Kinetic 3611 | 132 414 728 2015 . . 322 Thermal 252 | . 252 . . . . . Explosive 1472 | . 536 712 224 . . . Electromagnetic . | . . . . . . . Impact . | . . . . . . . Slashing . | . . . . . . . Piercing 130 | . . . . . . 130 Highest Corruption 4 | . 3 3 . . . 4 Average Corruption 2 | . 2 3 . . . 2 Corruption Purged . | . . . . . . . Corruption Blocked . | . . . . . . . Effects 36 | . 14 22 . . . . Message Errors 12 | . 5 7 . . . . Matter Fused 7 | . 3 4 . . . . Heat Flow Errors 4 | . 2 2 . . . . Energy Discharges 5 | . 3 2 . . . . Data Loss (minor) 3 | . . 3 . . . . Data Loss (major) 2 | . . 2 . . . . Misfires 2 | . 1 1 . . . . Weapon Failures 1 | . . 1 . . . . Overload Shots . | . . . . . . . Overflow Damage 283 | . 152 69 62 . . . Projectiles 25 | . . 11 14 . . . Explosions 258 | . 152 58 48 . . . Melee . | . . . . . . . Knockbacks 30 | . 1 12 13 . . 4 Impact . | . . . . . . . Kinetic 27 | . 1 11 11 . . 4 Secondary 3 | . . 1 2 . . . Self-Inflicted Damage 59 | . . 59 . . . . Shots 2 | . . 2 . . . . Rammed 3 | . . 2 1 . . . Targets Rammed 3 | . . 2 1 . . . Kicked . | . . . . . . . Crushed . | . . . . . . . Highest Temperature 314 | . 181 251 171 . . 314 Average Temperature 46 | . 43 31 44 . . 107 Received Heat Transfer 980 | . 126 30 243 . . 581 Siege Activations . | . . . . . . . Martial Activations . | . . . . . . . Shielding Activations . | . . . . . . . Robots Disrupted . | . . . . . . . Combat Hostiles . | . . . . . . . Robots Corrupted . | . . . . . . . Combat Hostiles . | . . . . . . . Parts Fried . | . . . . . . . Impact Corruptions . | . . . . . . . Robots Melted . | . . . . . . . Combat Hostiles . | . . . . . . . Parts Melted . | . . . . . . . Heat Transferred 150 | . 150 . . . . . Parts Sabotaged . | . . . . . . . Parts Stolen . | . . . . . . . Parts Stripped . | . . . . . . . Power Chain Reactions . | . . . . . . . Alert | -11 -10 -10 -9 -9 -7 -6 ------- Run | Yrd Mat Min Mat Min Zio Pro Maximum Alert Level 2 | . . . 2 . . . Low Security (%) 86 | 100 100 100 59 100 . . Level 1 11 | . . . 34 . . . Level 2 2 | . . . 6 . . . Level 3 . | . . . . . . . Level 4 . | . . . . . . . Level 5 . | . . . . . . . High Security . | . . . . . . . Max Security . | . . . . . . . Peak Influence 429 | 10 173 116 429 162 . . Initial 162 | . . 13 . 162 . . Average 91 | 1 75 22 176 155 . . Influence Increases 2098 | 25 498 288 931 . 29 327 Destroy 0b10 Robot/C 1200 | . 240 180 580 . 20 180 Destroy 0b10 Robot/NC 180 | 25 35 20 100 . . . Destroy Leader 286 | . 54 40 172 . . 20 Allied During Kill 136 | . . . . . 9 127 Successful Hack 13 | . 13 . . . . . Select Force Hacks 60 | . 60 . . . . . Disable Machine 105 | . 75 . 30 . . . Destroy Structure 73 | . 21 33 19 . . . Lose Combat Pursuer 45 | . . 15 30 . . . Influence Decreases 2098 | 25 464 322 514 275 171 327 Entered New Map 418 | . . 21 . 255 142 . Time Decay 1422 | 25 463 241 484 20 29 160 Lost Part 118 | . 1 60 30 . . 27 Lost Ally 140 | . . . . . . 140 Squads Dispatched 5 | . 3 . 2 . . . Investigation 5 | . 3 . 2 . . . Extermination . | . . . . . . . Reinforcement . | . . . . . . . Assault . | . . . . . . . Garrison . | . . . . . . . Intercept . | . . . . . . . Searches Triggered . | . . . . . . . Construction Impeded . | . . . . . . . Haulers Reinforced . | . . . . . . . Active Scanning Responses . | . . . . . . . Cargo Convoy Interrupts . | . . . . . . . Stealth | -11 -10 -10 -9 -9 -7 -6 --------- Run | Yrd Mat Min Mat Min Zio Pro Distress Signals 8 | . 2 . 6 . . . Communications Jammed . | . . . . . . . Distress Signals . | . . . . . . . Times Spotted 97 | . 18 21 41 . . 17 Peak Tracking Total 10 | . 6 6 5 . . 10 Tactical Retreats 2 | . . 1 1 . . . Traps | -11 -10 -10 -9 -9 -7 -6 ------- Run | Yrd Mat Min Mat Min Zio Pro Traps Triggered 5 | . 3 . 2 . . . Indirectly . | . . . . . . . Trap Hack Attempts . | . . . . . . . Triggered . | . . . . . . . Disarmed . | . . . . . . . Reprogrammed . | . . . . . . . Reused . | . . . . . . . Traps Extracted . | . . . . . . . Installed . | . . . . . . . Triggered . | . . . . . . . Machines | -11 -10 -10 -9 -9 -7 -6 ---------- Run | Yrd Mat Min Mat Min Zio Pro Machines Disabled 7 | . 5 . 2 . . . Max in Single Turn 3 | . 3 . 1 . . . Machines Repaired . | . . . . . . . Machines Dismantled . | . . . . . . . Machines Sabotaged . | . . . . . . . Overloaded Fab Kills . | . . . . . . . Hacking | -11 -10 -10 -9 -9 -7 -6 --------- Run | Yrd Mat Min Mat Min Zio Pro Machines Accessed 11 | . 9 . 2 . . . Terminals 6 | . 6 . . . . . Fabricators . | . . . . . . . Repair Stations 1 | . 1 . . . . . Recycling Units 3 | . 2 . 1 . . . Scanalyzers 1 | . . . 1 . . . Garrison Access . | . . . . . . . Total Hacks 25 | . 19 . 6 . . . Successful 17 | . 12 . 5 . . . Failed 7 | . 6 . 1 . . . Catastrophic 1 | . 1 . . . . . Database Lockouts 1 | . 1 . . . . . Manual 10 | . 10 . . . . . Terminals 11 | . 11 . . . . . Fabricators . | . . . . . . . Repair Stations 6 | . 6 . . . . . Recycling Units 5 | . 2 . 3 . . . Scanalyzers 3 | . . . 3 . . . Garrison Access . | . . . . . . . Terminal Hacks 1 | . 1 . . . . . Robot Analysis 1 | . 1 . . . . . Fabricator Hacks . | . . . . . . . Repair Station Hacks 6 | . 6 . . . . . Scan Component 3 | . 3 . . . . . Repair 3 | . 3 . . . . . Recycling Unit Hacks 3 | . . . 3 . . . Process 1 | . . . 1 . . . Report Inventory 1 | . . . 1 . . . Retrieve Matter 1 | . . . 1 . . . Scanalyzer 2 | . . . 2 . . . Insert Component 1 | . . . 1 . . . Retrieve Study 1 | . . . 1 . . . Garrison Access Hacks . | . . . . . . . Unauthorized Hacks 5 | . 5 . . . . . Terminals 3 | . 3 . . . . . Botnet 2 | . 2 . . . . . Operators 1 | . 1 . . . . . Fabricators . | . . . . . . . Repair Stations . | . . . . . . . Recycling Units 2 | . 2 . . . . . Tunnel 2 | . 2 . . . . . Scanalyzers . | . . . . . . . Garrison Access . | . . . . . . . Data Cores Recovered . | . . . . . . . Used . | . . . . . . . Hacking Detections 8 | . 7 . 1 . . . Full Trace Events 2 | . 1 . 1 . . . Feedback Events . | . . . . . . . Feedback Blocked . | . . . . . . . Robot Schematics Acquired . | . . . . . . . Robots Built . | . . . . . . . Authchips . | . . . . . . . Time . | . . . . . . . Total Robot Build Rating . | . . . . . . . Part Schematics Acquired . | . . . . . . . Parts Built . | . . . . . . . Authchips . | . . . . . . . Time . | . . . . . . . Total Part Build Rating . | . . . . . . . Part Studies Acquired 1 | . . . 1 . . . Parts Repaired 3 | . 3 . . . . . Time 78 | . 78 . . . . . Parts Recycled . | . . . . . . . Recycled Matter 233 | . . . 233 . . . Retrieved Matter 306 | . . . 306 . . . Retrieved Components . | . . . . . . . Parts Scanalyzed . | . . . . . . . Part Schematics Acquired . | . . . . . . . Parts Damaged . | . . . . . . . Bothacking | -11 -10 -10 -9 -9 -7 -6 ------------ Run | Yrd Mat Min Mat Min Zio Pro Used RIF Installer . | . . . . . . . Robots Hacked . | . . . . . . . Non-combat . | . . . . . . . Combat . | . . . . . . . Robot Hacks Applied . | . . . . . . . Relay Couplers Released . | . . . . . . . Fabnet Peak Effective % . | . . . . . . . Robots Rewired . | . . . . . . . Allies Hacked . | . . . . . . . Hacks Repelled . | . . . . . . . Allies | -11 -10 -10 -9 -9 -7 -6 -------- Run | Yrd Mat Min Mat Min Zio Pro Total Allies 9 | . . . . . 9 . Largest Group 9 | . . . . . 9 9 Highest-Rated Group 306 | . . . . . 306 306 Highest-Rated Ally 51 | . . . . . 51 51 Total Orders . | . . . . . . . Ally Attacks 58 | . . . . . 3 55 Total Damage 1654 | . . . . . 54 1600 Kills 9 | . . . . . 1 8 Allies Corrupted . | . . . . . . . Allies Melted . | . . . . . . . Intel | -11 -10 -10 -9 -9 -7 -6 ------- Run | Yrd Mat Min Mat Min Zio Pro Active Infowar (turns) 1408 | 61 1347 . . . . . Seismic 1408 | 61 1347 . . . . . Robot Analysis Total 1 | . 1 . . . . . Derelict Logs Recovered 2 | . . 1 . . 1 . Drone Launches . | . . . . . . . Drone Recoveries . | . . . . . . . Exploration | -11 -10 -10 -9 -9 -7 -6 ------------- Run | Yrd Mat Min Mat Min Zio Pro Turns Passed 6302 | 153 1429 1287 1404 42 1619 368 Spaces Moved 3047 | 76 723 453 614 27 976 178 Core 13 | 13 . . . . . . Treads 2960 | 63 723 434 559 27 976 178 Legs . | . . . . . . . Wheels 74 | . . 19 55 . . . Hover . | . . . . . . . Flight . | . . . . . . . Fastest Speed 50 | 50 160 155 120 160 160 160 Average Speed 176 | 141 163 246 175 160 160 172 Slowest Speed 320 | 160 240 320 240 160 160 246 Overloaded Moves . | . . . . . . . Propulsion Burnouts . | . . . . . . . Robots Hopped . | . . . . . . . Potential Cave-ins . | . . . . . . . Cave-ins Triggered . | . . . . . . . Exploration Rate (%) 52 | 4 100 69 63 10 88 32 Regions Visited 6 Branch Regions 4 Pre-discovered Areas 4 | . 2 . . . 2 . Known Exits Taken . | . . . . . . . Unknown Exits Taken 6 | 1 1 1 1 1 1 . Scrap Searched 5 | . . 1 . . 3 1 Spaces Dug . | . . . . . . . Terrain Destroyed 111 | . 21 76 14 . . . Melee . | . . . . . . . Projectile . | . . . . . . . AOE 111 | . 21 76 14 . . . Terrain Rammed . | . . . . . . . Walls Destroyed . | . . . . . . . Machines Disabled . | . . . . . . . Actions | -11 -10 -10 -9 -9 -7 -6 --------- Run | Yrd Mat Min Mat Min Zio Pro Total 3595 | 98 919 526 778 26 1035 213 Wait 199 | . 116 7 17 . 50 9 Move 3041 | 75 722 452 613 26 975 178 Hop . | . . . . . . . Pick Up 49 | 4 19 4 18 . 4 . Fast Attach 14 | 7 3 2 2 . . . Attach 15 | . 1 5 5 . . 4 Detach 3 | . 2 . 1 . . . Swap 52 | 1 10 10 24 . 2 5 Drop 41 | . 13 . 20 . 4 4 Fire 172 | 11 33 44 77 . . 7 Melee 6 | . . . . . . 6 Ram . | . . . . . . . Kick . | . . . . . . . Crush 3 | . . 2 1 . . . Escape Stasis . | . . . . . . . Rewire . | . . . . . . . Trap . | . . . . . . . Miscellaneous . | . . . . . . . Route ------- -11/Scrapyard -10/Materials (discovered 5 exits: *Mat x3 / [*Min] / [*Sub]) -10/Mines (discovered 2 exits: *Mat x2) -9/Materials (discovered 4 exits: [*Mat x3] / [*Min]) -9/Mines -7/Zion -6/Proximity Caves History --------- Turn | Location | Event 8 | -11/Scrapyard | Discovered new exit (range 15) 154 | -11/Scrapyard | Entered Materials 318 | -10/Materials | Build established: Mutant 387 | -10/Materials | Discovered new exit (range 8) 653 | -10/Materials | Discovered new exit (range 7) 654 | -10/Materials | Derelicts attacked the area 871 | -10/Materials | Discovered new exit (range 16) 1120 | -10/Materials | Discovered new exit (range 9) 1154 | -10/Materials | Central database locked down 1248 | -10/Materials | Discovered new exit (range 15) 1410 | -10/Materials | Repaired Lgt. Treads 1437 | -10/Materials | Repaired Grenade Launcher 1464 | -10/Materials | Repaired Lgt. Treads 1583 | -10/Materials | Entered Mines 1609 | -10/Mines | Found a Scrap Suit stashed away for nefarious purposes 1615 | -10/Mines | Found Scrap Suit 1630 | -10/Mines | Met a Derelict bent on vengeance 1724 | -10/Mines | Discovered new exit (range 6) 2143 | -10/Mines | Discovered new exit (range 9) 2336 | -10/Mines | Assembled infested the area 2349 | -10/Mines | Core integrity fell below 50% 2408 | -10/Mines | Lost 6 parts (1p2n2u1w) 2435 | -10/Mines | Destroyed 7 combat bots 2870 | -10/Mines | Entered Materials 2870 | -9/Materials | Evolved 2 slots: Propulsion x1, Weapon x1 3272 | -9/Materials | Discovered new exit (range 15) 3365 | -9/Materials | Build established: Scavenger-Tank 3686 | -9/Materials | Discovered new exit (range 5) 3928 | -9/Materials | Build established: Tank 4183 | -9/Materials | Discovered new exit (range 15) 4247 | -9/Materials | Discovered new exit (range 15) 4274 | -9/Materials | Entered Mines 4304 | -9/Mines | A Derelict revealed a hidden shortcut to a safe place 4316 | -9/Mines | Entered Zion 4451 | -7/Zion | Given the Hacking Drone Bay 4455 | -7/Zion | Found Prototype Device 4464 | -7/Zion | Discovered new exit (range 12) 4529 | -7/Zion | Gained Derelict followers 4945 | -7/Zion | Learned location of Extension (-4) 5253 | -7/Zion | Found Prototype Device 5253 | -7/Zion | Identified Mobile Refinery Mk. CCLXVII 5500 | -7/Zion | Found CR-A16's Pointy Stick 5581 | -7/Zion | Met Imprinter 5613 | -7/Zion | Imprinted 5616 | -7/Zion | Declared Zion's savior 5935 | -7/Zion | Entered Proximity Caves 5935 | -6/Proximity Caves | Accompanied by 9 allies 6122 | -6/Proximity Caves | Lost 3 allies 6200 | -6/Proximity Caves | Unaware initiated a cargo recovery operation 6258 | -6/Proximity Caves | Spotted B-75 Beast 6259 | -6/Proximity Caves | Entered a huge 0b10 base via the front door 6294 | -6/Proximity Caves | Core integrity fell below 50% 6297 | -6/Proximity Caves | Core integrity fell below 20% 6303 | -6/Proximity Caves | Destroyed by B-75 Beast with Heavy Plasma Cannon Last Messages --------------- 06289_ Lgt. Angular Momentum Engine destroyed. 06289_ Slug penetrates Reinforced Barrier. 06289_ Penetrated by Slug. 06291_ Corrupted Flak Gun self-destruct mechanism malfunctions. 06291_ P-60 Hacker resets B-75 Beast, system corruption cleaned. 06291_ M-28 Smith repairs X-62 Marksman. 06291_ Penetrated by Slug. 06293_ Arm. Treads destroyed. 06293_ Slug penetrates M-28 Smith. 06293_ Arm. Treads severed. 06293_ Knocked back. 06294_ U-05 Engineer lays Concrete. 06296_ R-10 Processor collects Corrupted Flak Gun. 06296_ Penetrated by Slug. 06296_ M-28 Smith destroyed. 06299_ Penetrated by Slug. 06299_ P-60 Hacker resets L-41 Fighter, system corruption cleaned. 06299_ Slug penetrates Reinforced Barrier. 06300_ R-10 Processor collects Corrupted Imp. Deuterium Engine. 06303_ R-10 Processor collects Corrupted Lgt. Treads. Map ----- +----------------------------------------------------+ | #???# ### #??????????????????????????????????? | | #??# ## #??????????????????????????????????? | | #?? ?# #??????????????????????????????????? | | ##?# ### ##?????????????????????????????????? | | ### #?????????????????????????????????? | | ### #####??????????????????????????????? | | ## #??????????????????????????????? | | #??????????????????????????????? | | #### ##??????????????????????????????? | | # #??# #???????????????????????????????? | | ## #??# ##??????????????????????????????? | | ?# #??# ##?????????###?????????????????? | | ## #??# ## ##??????? ??????????????????? | | ##?## ### #??????? ???????????????????? | | #??## ### #???????%#???????????????????? | | #???# ### % ##?######h#####???????????????? | | ##??##### *###??# x #???????????????? | | ###????# ##???# *% [##??????????????? | | ##???# #;#### %#??????????????? | | #???## % / % x R #???????????????? | | ## ##????## = /=%! #???????????????? | | ### ##??????# %!;%[ #######?????????? | | #?? #???????# ; A?????????? | | #?# #??????# ; %= R ??????????? | | ? #??????# #### pl! #???????????????? | | ####### #??????# #??#% @BB #???????????????? | | ??????? #????? #??#% /BB #???????????????? | | ??????? ??? #??##### #####???????????????? | | ???????? ? #??????? #???????????????????? | | ???????? ##????????##???????????????????? | | ????????# #??????????????????????????????? | | ????????# #??????????????????????????????? | | ????????# ???????????????????????????????? | | ????????# ## #???????????????????????????????? | | ????????## ?###????????????????????????????????? | | ?????????# ?????????????????????????????????????? | | ?????????????????????????????????????????????????? | | ?????????????????????????????????????????????????? | | ?????????????????????????????????????????????????? | | ?????????????????????????????????????????????????? | | ?????????????????????????????????????????????????? | | ?????????????????????????????????????????????????? | | ?????????????????????????????????????????????????? | | ?????????????????????????????????????????????????? | | ?????????????????????????????????????????????????? | | ?????????????????????????????????????????????????? | | ?????????????????????????????????????????????????? | | ?????????????????????????????????????????????????? | | ?????????????????????????????????????????????????? | | ?????????????????????????????????????????????????? | +----------------------------------------------------+ Best States ------------- Heat Dissipation 28 Energy Generation 18 Energy Capacity 250 Matter Stores 300 Matter Capacity 300 Sight Range 16 Terrain Scan Density 10 Armor Coverage 225 Evasion (%) 50 Recoil Reduction 3 Item Schematics ----------------- None Robot Schematics ------------------ None Fabricated ------------ Nothing Repaired ---------- Lgt. Treads | 28% | -10/Materials Grenade Launcher | 53% | -10/Materials Lgt. Treads | 69% | -10/Materials Studied --------- Lgt. Cannon | -9/Materials | Hacked Alien Tech Used ----------------- None Achievements -------------- Bumper Bots Challenges ------------ None Game ------ Seed TransdimensionalFusionRifle Manual? 0 Play Time 00:37:11 Cumulative 162.6 hours Start 2025.12.30 @ 10:13:34 End 2025.12.30 @ 11:53:24 Sessions 1 Manual Loads 0 Difficulty Rogue Special Mode None Game No. 97 Rogue 93 Adventurer 4 Explorer 0 Win Type - Total 3 Types 2/0/0/1/0/0/0/0/0/0 Lore% 67 Gallery% 59 Achievement% 31 Wizard Run 0 Options --------- Layout 0 ASCII 0 Keyboard 1 Movement Vi Keybinds 0 Fullscreen 1 Font 24/Smallcaps Map View 76x50 Zoom Use 0% Tactical HUD 1 Map Filters NONE Filters NONE Steam 1 RUN: 965f30b6-78a5-43f8-a629-2e8f57cc5fe9